[Event "Titled Tuesday Blitz May 10 Early 2022"]
[White "Gharibyan, Mamikon"]
[Black "Samant Aditya S"]
[WhiteFideId "13308300"]
[BlackFideId "35080580"]
[WhiteElo "2254"]
[BlackElo "1916"]
[Result "1/2-1/2"]
[Round "07"]
[TimeControl "180+1"]
[Date "2022.05.10"]
[WhiteClock "0:00:04"]
[BlackClock "0:00:02"]

1. d4 {[%clk 0:03:00]}  Nf6 {[%clk 0:02:59]} 2. c4 {[%clk 0:03:00]}  e6 {[%clk 0:03:00]} 3. Nc3 {[%clk 0:02:59]}  Bb4 {[%clk 0:03:00]} 4. e3 {[%clk 0:03:00]}  b6 {[%clk 0:02:52]} 5. Ne2 {[%clk 0:02:58]}  c5 {[%clk 0:02:52]} 6. a3 {[%clk 0:02:55]}  Ba5 {[%clk 0:02:52]} 7. Rb1 {[%clk 0:02:51]}  Na6 {[%clk 0:02:52]} 8. Qa4 {[%clk 0:02:21]}  Bb7 {[%clk 0:02:50]} 9. b4 {[%clk 0:01:51]}  Bc6 {[%clk 0:02:50]} 10. b5 {[%clk 0:01:09]}  Be4 {[%clk 0:02:49]} 11. Rb2 {[%clk 0:01:06]}  cxd4 {[%clk 0:02:50]} 12. exd4 {[%clk 0:01:03]}  Nc7 {[%clk 0:02:49]} 13. Bd2 {[%clk 0:01:00]}  Bb7 {[%clk 0:02:48]} 14. Nf4 {[%clk 0:00:52]}  O-O {[%clk 0:02:48]} 15. Bd3 {[%clk 0:00:51]}  d6 {[%clk 0:02:46]} 16. O-O {[%clk 0:00:51]}  e5 {[%clk 0:02:46]} 17. Nfe2 {[%clk 0:00:49]}  Ne6 {[%clk 0:02:31]} 18. Qc2 {[%clk 0:00:46]}  exd4 {[%clk 0:02:06]} 19. Nb1 {[%clk 0:00:32]}  Bxd2 {[%clk 0:02:04]} 20. Nxd2 {[%clk 0:00:31]}  d5 {[%clk 0:02:02]} 21. Rb4 {[%clk 0:00:28]}  Rc8 {[%clk 0:01:59]} 22. Nb3 {[%clk 0:00:27]}  dxc4 {[%clk 0:01:50]} 23. Rxc4 {[%clk 0:00:27]}  Qd5 {[%clk 0:01:35]} 24. f3 {[%clk 0:00:27]}  Qe5 {[%clk 0:01:19]} 25. Qd2 {[%clk 0:00:17]}  Bd5 {[%clk 0:01:12]} 26. Rxc8 {[%clk 0:00:15]}  Rxc8 {[%clk 0:01:13]} 27. f4 {[%clk 0:00:06]}  Qd6 {[%clk 0:01:11]} 28. Nbxd4 {[%clk 0:00:06]}  Nxd4 {[%clk 0:01:11]} 29. Nxd4 {[%clk 0:00:06]}  Qxa3 {[%clk 0:01:01]} 30. h3 {[%clk 0:00:05]}  Qc5 {[%clk 0:01:00]} 31. Bb1 {[%clk 0:00:04]}  Be4 {[%clk 0:00:46]} 32. Bxe4 {[%clk 0:00:03]}  Nxe4 {[%clk 0:00:47]} 33. Qe3 {[%clk 0:00:03]}  Nc3 {[%clk 0:00:38]} 34. Kh2 {[%clk 0:00:03]}  Nxb5 {[%clk 0:00:32]} 35. Rd1 {[%clk 0:00:03]}  Nxd4 {[%clk 0:00:31]} 36. Rxd4 {[%clk 0:00:04]}  g6 {[%clk 0:00:28]} 37. h4 {[%clk 0:00:04]}  h5 {[%clk 0:00:27]} 38. Qd2 {[%clk 0:00:03]}  Kg7 {[%clk 0:00:23]} 39. Rd5 {[%clk 0:00:03]}  Qc3 {[%clk 0:00:22]} 40. Qe2 {[%clk 0:00:03]}  Qf6 {[%clk 0:00:20]} 41. g3 {[%clk 0:00:03]}  Qc6 {[%clk 0:00:18]} 42. Qe5+ {[%clk 0:00:02]}  Kh7 {[%clk 0:00:18]} 43. Rd2 {[%clk 0:00:02]}  Qc3 {[%clk 0:00:18]} 44. Qd5 {[%clk 0:00:02]}  Rc7 {[%clk 0:00:17]} 45. f5 {[%clk 0:00:02]}  Qf6 {[%clk 0:00:12]} 46. Rf2 {[%clk 0:00:02]}  Qe7 {[%clk 0:00:07]} 47. fxg6+ {[%clk 0:00:02]}  fxg6 {[%clk 0:00:07]} 48. Qd3 {[%clk 0:00:02]}  Qe6 {[%clk 0:00:05]} 49. Re2 {[%clk 0:00:02]}  Qf6 {[%clk 0:00:05]} 50. Kg2 {[%clk 0:00:02]}  Rf7 {[%clk 0:00:05]} 51. Kh2 {[%clk 0:00:02]}  Kg7 {[%clk 0:00:05]} 52. Qe3 {[%clk 0:00:02]}  a5 {[%clk 0:00:06]} 53. Ra2 {[%clk 0:00:01]}  Re7 {[%clk 0:00:05]} 54. Qd3 {[%clk 0:00:01]}  Qe6 {[%clk 0:00:05]} 55. Qd2 {[%clk 0:00:02]}  Qf6 {[%clk 0:00:05]} 56. Qc2 {[%clk 0:00:02]}  Kh7 {[%clk 0:00:05]} 57. Qd2 {[%clk 0:00:02]}  Qe6 {[%clk 0:00:05]} 58. Qc2 {[%clk 0:00:02]}  Qe4 {[%clk 0:00:05]} 59. Qd2 {[%clk 0:00:02]}  Qf3 {[%clk 0:00:05]} 60. Qc2 {[%clk 0:00:03]}  Re3 {[%clk 0:00:04]} 61. Qc7+ {[%clk 0:00:03]}  Kh6 {[%clk 0:00:04]} 62. Rg2 {[%clk 0:00:02]}  Re2 {[%clk 0:00:03]} 63. Qc1+ {[%clk 0:00:03]}  Qe3 {[%clk 0:00:03]} 64. Qc7 {[%clk 0:00:03]}  Rxg2+ {[%clk 0:00:03]} 65. Kxg2 {[%clk 0:00:03]}  Qe2+ {[%clk 0:00:03]} 66. Kh3 {[%clk 0:00:04]}  Qg4+ {[%clk 0:00:04]} 67. Kh2 {[%clk 0:00:04]}  Qe6 {[%clk 0:00:04]} 68. Qf4+ {[%clk 0:00:04]}  Kg7 {[%clk 0:00:05]} 69. Qc7+ {[%clk 0:00:05]}  Kf6 {[%clk 0:00:05]} 70. Qf4+ {[%clk 0:00:04]}  Ke7 {[%clk 0:00:06]} 71. Qc7+ {[%clk 0:00:04]}  Ke8 {[%clk 0:00:04]} 72. Qb8+ {[%clk 0:00:04]}  Kf7 {[%clk 0:00:04]} 73. Qc7+ {[%clk 0:00:04]}  Kf6 {[%clk 0:00:03]} 74. Qf4+ {[%clk 0:00:04]}  Kg7 {[%clk 0:00:02]} 75. Qc7+ {[%clk 0:00:04]}  Kh6 {[%clk 0:00:02]} 76. Qf4+ {[%clk 0:00:04]}  Kg7 {[%clk 0:00:02]} 1/2-1/2


[Site "https://www.chess.com"]

[Event "Titled Tuesday Blitz May 10 Early 2022"]
[White "Guz, Ari"]
[Black "Rodchenkov, Sergey D."]
[WhiteFideId "2825759"]
[BlackFideId "4168712"]
[WhiteElo "1913"]
[BlackElo "2306"]
[Result "0-1"]
[Round "07"]
[TimeControl "180+1"]
[Date "2022.05.11"]
[WhiteClock "0:01:02"]
[BlackClock "0:00:28"]

1. b3 {[%clk 0:03:00]}  Nf6 {[%clk 0:02:57]} 2. Nf3 {[%clk 0:03:01]}  d5 {[%clk 0:02:57]} 3. Bb2 {[%clk 0:03:01]}  c5 {[%clk 0:02:57]} 4. e3 {[%clk 0:03:01]}  e6 {[%clk 0:02:58]} 5. d4 {[%clk 0:03:02]}  cxd4 {[%clk 0:02:54]} 6. Nxd4 {[%clk 0:02:59]}  Nc6 {[%clk 0:02:54]} 7. Nxc6 {[%clk 0:02:59]}  bxc6 {[%clk 0:02:55]} 8. Nd2 {[%clk 0:03:00]}  Bd6 {[%clk 0:02:52]} 9. Bd3 {[%clk 0:03:00]}  e5 {[%clk 0:02:49]} 10. c4 {[%clk 0:02:59]}  O-O {[%clk 0:02:42]} 11. h3 {[%clk 0:02:55]}  a5 {[%clk 0:02:36]} 12. Qe2 {[%clk 0:02:53]}  e4 {[%clk 0:02:31]} 13. Bc2 {[%clk 0:02:51]}  a4 {[%clk 0:02:31]} 14. bxa4 {[%clk 0:02:48]}  Nd7 {[%clk 0:02:26]} 15. O-O {[%clk 0:02:42]}  Ne5 {[%clk 0:02:24]} 16. cxd5 {[%clk 0:02:38]}  Ba6 {[%clk 0:02:00]} 17. Qh5 {[%clk 0:02:28]}  g6 {[%clk 0:01:56]} 18. Qh6 {[%clk 0:02:27]}  cxd5 {[%clk 0:01:46]} 19. Rfd1 {[%clk 0:02:24]}  Qf6 {[%clk 0:01:41]} 20. Nb3 {[%clk 0:02:07]}  Nf3+ {[%clk 0:01:31]} 21. gxf3 {[%clk 0:01:59]}  Qxb2 {[%clk 0:01:31]} 22. Bxe4 {[%clk 0:01:59]}  Qe5 {[%clk 0:01:18]} 23. Bd3 {[%clk 0:01:55]}  Qh2+ {[%clk 0:01:08]} 24. Kf1 {[%clk 0:01:54]}  Bc8 {[%clk 0:00:50]} 25. Ke2 {[%clk 0:01:30]}  Bg3 {[%clk 0:00:49]} 26. Rf1 {[%clk 0:01:30]}  Bxh3 {[%clk 0:00:49]} 27. Qg5 {[%clk 0:01:31]}  Bxf1+ {[%clk 0:00:49]} 28. Rxf1 {[%clk 0:01:30]}  Be5 {[%clk 0:00:47]} 29. a5 {[%clk 0:01:29]}  Bg7 {[%clk 0:00:42]} 30. Qxd5 {[%clk 0:01:25]}  Rfd8 {[%clk 0:00:40]} 31. Qe4 {[%clk 0:01:25]}  Qd6 {[%clk 0:00:37]} 32. Bc4 {[%clk 0:01:23]}  Rxa5 {[%clk 0:00:29]} 33. Qb7 {[%clk 0:01:04]}  Rxa2+ {[%clk 0:00:29]} 34. Ke1 {[%clk 0:01:02]}  Qd1# {[%clk 0:00:28]} 0-1


[Site "https://www.chess.com"]

[Event "Titled Tuesday Blitz May 10 Early 2022"]
[White "Hambleton, Aman"]
[Black "Shyaamnikhil P"]
[WhiteFideId "2606577"]
[BlackFideId "5024218"]
[WhiteElo "2552"]
[BlackElo "2329"]
[Result "0-1"]
[Round "07"]
[TimeControl "180+1"]
[Date "2022.05.10"]
[WhiteClock "0:00:02"]
[BlackClock "0:00:16"]

1. d4 {[%clk 0:03:00]}  Nf6 {[%clk 0:02:59]} 2. Bf4 {[%clk 0:02:59]}  e6 {[%clk 0:02:57]} 3. e3 {[%clk 0:03:00]}  c5 {[%clk 0:02:57]} 4. c3 {[%clk 0:03:00]}  b6 {[%clk 0:02:53]} 5. Nf3 {[%clk 0:02:56]}  Be7 {[%clk 0:02:51]} 6. Nbd2 {[%clk 0:02:29]}  O-O {[%clk 0:02:50]} 7. a4 {[%clk 0:02:28]}  Ba6 {[%clk 0:02:27]} 8. Bb5 {[%clk 0:02:28]}  Bb7 {[%clk 0:02:20]} 9. h3 {[%clk 0:02:17]}  a6 {[%clk 0:02:04]} 10. Bd3 {[%clk 0:02:08]}  cxd4 {[%clk 0:02:00]} 11. exd4 {[%clk 0:02:08]}  d6 {[%clk 0:01:59]} 12. Bh2 {[%clk 0:02:08]}  Nbd7 {[%clk 0:01:55]} 13. O-O {[%clk 0:02:07]}  Re8 {[%clk 0:01:48]} 14. Re1 {[%clk 0:02:06]}  Nf8 {[%clk 0:01:48]} 15. Nc4 {[%clk 0:02:00]}  Ng6 {[%clk 0:01:47]} 16. Nfd2 {[%clk 0:01:38]}  Rb8 {[%clk 0:01:44]} 17. Ne3 {[%clk 0:01:26]}  Bf8 {[%clk 0:01:40]} 18. Qe2 {[%clk 0:01:25]}  Ra8 {[%clk 0:01:38]} 19. Rad1 {[%clk 0:01:03]}  Qd7 {[%clk 0:01:34]} 20. Ndc4 {[%clk 0:00:56]}  Qc6 {[%clk 0:01:26]} 21. Qc2 {[%clk 0:00:37]}  e5 {[%clk 0:00:54]} 22. dxe5 {[%clk 0:00:12]}  Nxe5 {[%clk 0:00:52]} 23. Bf1 {[%clk 0:00:06]}  Nxc4 {[%clk 0:00:33]} 24. Nxc4 {[%clk 0:00:07]}  Rxe1 {[%clk 0:00:31]} 25. Rxe1 {[%clk 0:00:08]}  Ne4 {[%clk 0:00:22]} 26. Qb3 {[%clk 0:00:05]}  Ng5 {[%clk 0:00:18]} 27. f3 {[%clk 0:00:04]}  Nxf3+ {[%clk 0:00:17]} 28. gxf3 {[%clk 0:00:02]}  Qxf3 {[%clk 0:00:18]} 29. Bxd6 {[%clk 0:00:02]}  Bxd6 {[%clk 0:00:16]} 30. Re3 {[%clk 0:00:02]}  Qh1+ {[%clk 0:00:16]} 31. Kf2 {[%clk 0:00:02]}  Bc5 {[%clk 0:00:16]} 32. Nxb6 {[%clk 0:00:02]}  Qf3+ {[%clk 0:00:15]} 33. Ke1 {[%clk 0:00:01]}  Qxe3+ {[%clk 0:00:16]} 34. Be2 {[%clk 0:00:02]}  Bxb6 {[%clk 0:00:16]} 0-1


[Site "https://www.chess.com"]

[Event "Titled Tuesday Blitz May 10 Early 2022"]
[White "Harish, Neeraj"]
[Black "Ardila, Oscar Humberto"]
[WhiteFideId "30958130"]
[BlackFideId "4404742"]
[WhiteElo "1574"]
[BlackElo "1928"]
[Result "0-1"]
[Round "07"]
[TimeControl "180+1"]
[Date "2022.05.11"]
[WhiteClock "0:00:05"]
[BlackClock "0:00:39"]

1. e4 {[%clk 0:02:46]}  e5 {[%clk 0:03:00]} 2. Nf3 {[%clk 0:02:44]}  Nf6 {[%clk 0:03:00]} 3. d4 {[%clk 0:02:39]}  Nxe4 {[%clk 0:03:00]} 4. Nxe5 {[%clk 0:02:38]}  d5 {[%clk 0:02:57]} 5. Bd3 {[%clk 0:02:38]}  Bd6 {[%clk 0:02:57]} 6. Nf3 {[%clk 0:02:24]}  O-O {[%clk 0:02:57]} 7. O-O {[%clk 0:02:25]}  Nc6 {[%clk 0:02:56]} 8. c3 {[%clk 0:02:21]}  Bg4 {[%clk 0:02:55]} 9. h3 {[%clk 0:02:20]}  Bh5 {[%clk 0:02:55]} 10. Re1 {[%clk 0:02:19]}  Re8 {[%clk 0:02:55]} 11. Nbd2 {[%clk 0:02:15]}  f5 {[%clk 0:02:38]} 12. Nf1 {[%clk 0:01:52]}  Qf6 {[%clk 0:02:26]} 13. h4 {[%clk 0:01:03]}  h6 {[%clk 0:01:52]} 14. N1h2 {[%clk 0:00:34]}  Re7 {[%clk 0:01:39]} 15. Be3 {[%clk 0:00:15]}  Rae8 {[%clk 0:01:36]} 16. Qc2 {[%clk 0:00:15]}  Nd8 {[%clk 0:01:24]} 17. Rad1 {[%clk 0:00:11]}  c6 {[%clk 0:01:23]} 18. a4 {[%clk 0:00:10]}  Ne6 {[%clk 0:01:23]} 19. a5 {[%clk 0:00:10]}  a6 {[%clk 0:01:17]} 20. b4 {[%clk 0:00:09]}  Qg6 {[%clk 0:01:16]} 21. Kh1 {[%clk 0:00:09]}  Nf4 {[%clk 0:01:04]} 22. Bxf4 {[%clk 0:00:07]}  Bxf4 {[%clk 0:01:04]} 23. Be2 {[%clk 0:00:05]}  Nxf2+ {[%clk 0:01:01]} 24. Kg1 {[%clk 0:00:05]}  Nxd1 {[%clk 0:00:43]} 25. Qxd1 {[%clk 0:00:05]}  Qg3 {[%clk 0:00:39]} 0-1


[Site "https://www.chess.com"]

[Event "Titled Tuesday Blitz May 10 Early 2022"]
[White "Ianov, Viktor"]
[Black "Girinath, P.D.S."]
[WhiteFideId "14102730"]
[BlackFideId "5000572"]
[WhiteElo "2152"]
[BlackElo "2369"]
[Result "1-0"]
[Round "07"]
[TimeControl "180+1"]
[Date "2022.05.11"]
[WhiteClock "0:00:57"]
[BlackClock "0:00:05"]

1. Nf3 {[%clk 0:03:00]}  e6 {[%clk 0:03:00]} 2. g3 {[%clk 0:03:00]}  f5 {[%clk 0:03:00]} 3. Bg2 {[%clk 0:03:00]}  Nf6 {[%clk 0:03:01]} 4. O-O {[%clk 0:03:01]}  Be7 {[%clk 0:03:01]} 5. c4 {[%clk 0:03:01]}  O-O {[%clk 0:03:01]} 6. Nc3 {[%clk 0:03:01]}  a5 {[%clk 0:02:59]} 7. b3 {[%clk 0:02:59]}  d6 {[%clk 0:02:59]} 8. d4 {[%clk 0:02:58]}  Qe8 {[%clk 0:02:58]} 9. Bb2 {[%clk 0:02:58]}  Qh5 {[%clk 0:02:58]} 10. e3 {[%clk 0:02:56]}  Qh6 {[%clk 0:02:56]} 11. a3 {[%clk 0:02:52]}  g5 {[%clk 0:02:36]} 12. b4 {[%clk 0:02:51]}  g4 {[%clk 0:02:32]} 13. Ne1 {[%clk 0:02:47]}  Nc6 {[%clk 0:02:24]} 14. Nd3 {[%clk 0:02:46]}  Nd8 {[%clk 0:02:03]} 15. c5 {[%clk 0:02:45]}  Nf7 {[%clk 0:02:01]} 16. f4 {[%clk 0:02:29]}  gxf3 {[%clk 0:01:57]} 17. Qxf3 {[%clk 0:02:29]}  Ng4 {[%clk 0:01:57]} 18. h3 {[%clk 0:02:29]}  Qxe3+ {[%clk 0:01:56]} 19. Qxe3 {[%clk 0:02:25]}  Nxe3 {[%clk 0:01:57]} 20. Rfc1 {[%clk 0:02:21]}  Nxg2 {[%clk 0:01:50]} 21. Kxg2 {[%clk 0:02:21]}  Bd7 {[%clk 0:01:49]} 22. d5 {[%clk 0:02:16]}  e5 {[%clk 0:01:25]} 23. Re1 {[%clk 0:01:52]}  Bf6 {[%clk 0:01:20]} 24. Ne2 {[%clk 0:01:44]}  Kg7 {[%clk 0:01:16]} 25. cxd6 {[%clk 0:01:41]}  cxd6 {[%clk 0:01:15]} 26. Rac1 {[%clk 0:01:40]}  Bb5 {[%clk 0:01:08]} 27. Nf2 {[%clk 0:01:34]}  Rfc8 {[%clk 0:01:03]} 28. Nc3 {[%clk 0:01:31]}  Bc4 {[%clk 0:01:00]} 29. b5 {[%clk 0:01:31]}  a4 {[%clk 0:01:00]} 30. g4 {[%clk 0:01:24]}  Bg5 {[%clk 0:00:20]} 31. Rcd1 {[%clk 0:01:21]}  Bb3 {[%clk 0:00:19]} 32. Rd3 {[%clk 0:01:16]}  e4 {[%clk 0:00:19]} 33. Ncxe4+ {[%clk 0:01:14]}  Kg6 {[%clk 0:00:18]} 34. Nxg5 {[%clk 0:01:12]}  Nxg5 {[%clk 0:00:19]} 35. h4 {[%clk 0:01:08]}  Ne4 {[%clk 0:00:08]} 36. gxf5+ {[%clk 0:01:06]}  Kxf5 {[%clk 0:00:08]} 37. Rxe4 {[%clk 0:01:06]}  Rc2 {[%clk 0:00:06]} 38. Rf3+ {[%clk 0:01:05]}  Kg6 {[%clk 0:00:06]} 39. Rg4+ {[%clk 0:01:00]}  Kh5 {[%clk 0:00:06]} 40. Rf5+ {[%clk 0:00:57]}  Kh6 {[%clk 0:00:05]} 41. Bg7# {[%clk 0:00:57]} 1-0


[Site "https://www.chess.com"]

[Event "Titled Tuesday Blitz May 10 Early 2022"]
[White "Iljin, Timofey"]
[Black "Acosta Cruz, Oscar Yosimar"]
[WhiteFideId "14110180"]
[BlackFideId "5111269"]
[WhiteElo "2404"]
[BlackElo "2147"]
[Result "1-0"]
[Round "07"]
[TimeControl "180+1"]
[Date "2022.05.11"]
[WhiteClock "0:02:26"]
[BlackClock "0:00:11"]

1. d4 {[%clk 0:02:54]}  Nf6 {[%clk 0:02:59]} 2. c4 {[%clk 0:02:54]}  c6 {[%clk 0:03:00]} 3. Nc3 {[%clk 0:02:54]}  d5 {[%clk 0:03:00]} 4. Nf3 {[%clk 0:02:55]}  a6 {[%clk 0:02:40]} 5. g3 {[%clk 0:02:54]}  dxc4 {[%clk 0:02:37]} 6. a4 {[%clk 0:02:53]}  e6 {[%clk 0:02:34]} 7. Bg2 {[%clk 0:02:54]}  Bb4 {[%clk 0:02:33]} 8. O-O {[%clk 0:02:54]}  O-O {[%clk 0:02:31]} 9. Qc2 {[%clk 0:02:54]}  Bxc3 {[%clk 0:02:13]} 10. bxc3 {[%clk 0:02:54]}  b5 {[%clk 0:02:13]} 11. e4 {[%clk 0:02:53]}  Bb7 {[%clk 0:02:09]} 12. Ba3 {[%clk 0:02:52]}  Re8 {[%clk 0:02:08]} 13. Rfe1 {[%clk 0:02:46]}  Nbd7 {[%clk 0:02:08]} 14. Rad1 {[%clk 0:02:46]}  Qc7 {[%clk 0:02:07]} 15. e5 {[%clk 0:02:45]}  Nd5 {[%clk 0:02:06]} 16. Bd6 {[%clk 0:02:45]}  Qb6 {[%clk 0:02:05]} 17. Ng5 {[%clk 0:02:45]}  g6 {[%clk 0:01:57]} 18. h4 {[%clk 0:02:45]}  Ne7 {[%clk 0:01:41]} 19. h5 {[%clk 0:02:45]}  Nf5 {[%clk 0:01:41]} 20. Ba3 {[%clk 0:02:40]}  Rac8 {[%clk 0:01:10]} 21. Qe4 {[%clk 0:02:39]}  h6 {[%clk 0:00:57]} 22. Nxf7 {[%clk 0:02:29]}  Kxf7 {[%clk 0:00:55]} 23. hxg6+ {[%clk 0:02:30]}  Kxg6 {[%clk 0:00:46]} 24. g4 {[%clk 0:02:30]}  Rg8 {[%clk 0:00:21]} 25. Kh2 {[%clk 0:02:28]}  Kf7 {[%clk 0:00:15]} 26. gxf5 {[%clk 0:02:27]}  Rxg2+ {[%clk 0:00:13]} 27. Qxg2 {[%clk 0:02:25]}  Rg8 {[%clk 0:00:12]} 28. fxe6+ {[%clk 0:02:24]}  Kxe6 {[%clk 0:00:12]} 29. Qh3+ {[%clk 0:02:25]}  Kf7 {[%clk 0:00:11]} 30. Qxd7+ {[%clk 0:02:26]} 1-0


[Site "https://www.chess.com"]

[Event "Titled Tuesday Blitz May 10 Early 2022"]
[White "Jaskolka, Tomasz"]
[Black "Stoleriu, George"]
[WhiteFideId "1170791"]
[BlackFideId "1227505"]
[WhiteElo "2073"]
[BlackElo "2194"]
[Result "0-1"]
[Round "07"]
[TimeControl "180+1"]
[Date "2022.05.11"]
[WhiteClock "0:00:03"]
[BlackClock "0:01:51"]

1. d4 {[%clk 0:03:00]}  e6 {[%clk 0:02:59]} 2. Bf4 {[%clk 0:03:01]}  Nf6 {[%clk 0:02:59]} 3. e3 {[%clk 0:03:01]}  b6 {[%clk 0:03:00]} 4. Nf3 {[%clk 0:03:00]}  Bb7 {[%clk 0:03:00]} 5. Nbd2 {[%clk 0:03:01]}  d6 {[%clk 0:03:01]} 6. Be2 {[%clk 0:03:00]}  Nbd7 {[%clk 0:03:02]} 7. c3 {[%clk 0:03:01]}  Qe7 {[%clk 0:03:03]} 8. h3 {[%clk 0:02:59]}  g6 {[%clk 0:03:04]} 9. O-O {[%clk 0:02:57]}  Bg7 {[%clk 0:03:05]} 10. Qc2 {[%clk 0:02:57]}  O-O {[%clk 0:03:05]} 11. e4 {[%clk 0:02:58]}  e5 {[%clk 0:03:05]} 12. dxe5 {[%clk 0:02:57]}  dxe5 {[%clk 0:03:06]} 13. Bg5 {[%clk 0:02:57]}  h6 {[%clk 0:03:06]} 14. Be3 {[%clk 0:02:57]}  Nc5 {[%clk 0:03:05]} 15. Bxc5 {[%clk 0:02:53]}  Qxc5 {[%clk 0:03:06]} 16. Rfe1 {[%clk 0:02:52]}  Rad8 {[%clk 0:03:06]} 17. Rad1 {[%clk 0:02:52]}  Rd7 {[%clk 0:03:03]} 18. Nb3 {[%clk 0:02:46]}  Qe7 {[%clk 0:03:02]} 19. Rxd7 {[%clk 0:02:46]}  Nxd7 {[%clk 0:03:03]} 20. Bf1 {[%clk 0:02:43]}  Rd8 {[%clk 0:03:03]} 21. Rd1 {[%clk 0:02:42]}  Nf8 {[%clk 0:03:03]} 22. Rxd8 {[%clk 0:02:40]}  Qxd8 {[%clk 0:03:04]} 23. Qd3 {[%clk 0:02:40]}  Qxd3 {[%clk 0:03:03]} 24. Bxd3 {[%clk 0:02:41]}  Ne6 {[%clk 0:03:03]} 25. g3 {[%clk 0:02:41]}  Kf8 {[%clk 0:03:03]} 26. Kf1 {[%clk 0:02:41]}  Ke7 {[%clk 0:03:04]} 27. Ke2 {[%clk 0:02:42]}  Kd6 {[%clk 0:03:02]} 28. Ke3 {[%clk 0:02:42]}  h5 {[%clk 0:03:01]} 29. Nfd2 {[%clk 0:02:42]}  Bh6+ {[%clk 0:03:02]} 30. Ke2 {[%clk 0:02:40]}  a5 {[%clk 0:02:59]} 31. Nc4+ {[%clk 0:02:40]}  Ke7 {[%clk 0:02:57]} 32. Nxe5 {[%clk 0:02:41]}  a4 {[%clk 0:02:57]} 33. Nd4 {[%clk 0:02:37]}  Nc5 {[%clk 0:02:57]} 34. f3 {[%clk 0:02:35]}  Bc1 {[%clk 0:02:47]} 35. b4 {[%clk 0:02:30]}  Ne6 {[%clk 0:02:41]} 36. Nxe6 {[%clk 0:02:25]}  Kxe6 {[%clk 0:02:42]} 37. f4 {[%clk 0:02:24]}  Ke7 {[%clk 0:02:40]} 38. Bc2 {[%clk 0:01:39]}  a3 {[%clk 0:02:38]} 39. Kd3 {[%clk 0:01:37]}  g5 {[%clk 0:02:35]} 40. fxg5 {[%clk 0:01:31]}  Bxg5 {[%clk 0:02:36]} 41. Bb3 {[%clk 0:01:29]}  f6 {[%clk 0:02:35]} 42. Ng6+ {[%clk 0:01:28]}  Kd6 {[%clk 0:02:35]} 43. h4 {[%clk 0:01:24]}  Bh6 {[%clk 0:02:32]} 44. Nf4 {[%clk 0:01:25]}  Ke5 {[%clk 0:02:29]} 45. Bd5 {[%clk 0:01:14]}  Ba6+ {[%clk 0:02:22]} 46. b5 {[%clk 0:01:00]}  Bxb5+ {[%clk 0:02:19]} 47. c4 {[%clk 0:01:01]}  Be8 {[%clk 0:02:18]} 48. Ne2 {[%clk 0:00:30]}  c6 {[%clk 0:02:12]} 49. Bg8 {[%clk 0:00:30]}  Bg6 {[%clk 0:02:13]} 50. Nc3 {[%clk 0:00:30]}  Bc1 {[%clk 0:02:13]} 51. Na4 {[%clk 0:00:14]}  Bxe4+ {[%clk 0:02:12]} 52. Kc3 {[%clk 0:00:14]}  Be3 {[%clk 0:02:13]} 53. Bf7 {[%clk 0:00:13]}  Bf3 {[%clk 0:02:13]} 54. Kd3 {[%clk 0:00:13]}  Bf2 {[%clk 0:02:12]} 55. Be8 {[%clk 0:00:13]}  Bxg3 {[%clk 0:02:05]} 56. Nxb6 {[%clk 0:00:13]}  Bxh4 {[%clk 0:02:05]} 57. Nd7+ {[%clk 0:00:14]}  Kd6 {[%clk 0:02:04]} 58. c5+ {[%clk 0:00:12]}  Ke7 {[%clk 0:02:04]} 59. Bxh5 {[%clk 0:00:06]}  Bxh5 {[%clk 0:02:01]} 60. Nb6 {[%clk 0:00:07]}  Bf7 {[%clk 0:01:55]} 61. Nc8+ {[%clk 0:00:04]}  Kd7 {[%clk 0:01:53]} 62. Nb6+ {[%clk 0:00:05]}  Kc7 {[%clk 0:01:53]} 63. Na4 {[%clk 0:00:05]}  Bxa2 {[%clk 0:01:52]} 64. Kc3 {[%clk 0:00:06]}  Bd5 {[%clk 0:01:51]} 65. Kb4 {[%clk 0:00:06]}  a2 {[%clk 0:01:52]} 66. Nc3 {[%clk 0:00:07]}  a1=Q {[%clk 0:01:52]} 67. Na2 {[%clk 0:00:04]}  Qb2+ {[%clk 0:01:50]} 68. Ka4 {[%clk 0:00:03]}  Qb3+ {[%clk 0:01:50]} 69. Ka5 {[%clk 0:00:03]}  Qb5# {[%clk 0:01:51]} 0-1


[Site "https://www.chess.com"]

[Event "Titled Tuesday Blitz May 10 Early 2022"]
[White "Johnson, Ben"]
[Black "Barria Zuniga, Daniel"]
[WhiteFideId "2010917"]
[BlackFideId "3400816"]
[WhiteElo "2239"]
[BlackElo "2414"]
[Result "0-1"]
[Round "07"]
[TimeControl "180+1"]
[Date "2022.05.11"]
[WhiteClock "0:00:02"]
[BlackClock "0:00:13"]

1. Nf3 {[%clk 0:03:00]}  c5 {[%clk 0:02:50]} 2. c4 {[%clk 0:02:58]}  Nc6 {[%clk 0:02:47]} 3. Nc3 {[%clk 0:02:55]}  g6 {[%clk 0:02:46]} 4. d4 {[%clk 0:02:52]}  Bg7 {[%clk 0:02:43]} 5. d5 {[%clk 0:02:48]}  Na5 {[%clk 0:02:42]} 6. e4 {[%clk 0:02:41]}  d6 {[%clk 0:02:41]} 7. h3 {[%clk 0:02:38]}  e5 {[%clk 0:02:38]} 8. Bd3 {[%clk 0:02:30]}  Bd7 {[%clk 0:02:31]} 9. O-O {[%clk 0:02:29]}  a6 {[%clk 0:02:30]} 10. a3 {[%clk 0:02:15]}  b6 {[%clk 0:02:28]} 11. b4 {[%clk 0:02:10]}  Nb7 {[%clk 0:02:28]} 12. Rb1 {[%clk 0:02:07]}  Rb8 {[%clk 0:02:21]} 13. Be3 {[%clk 0:02:06]}  Bh6 {[%clk 0:02:20]} 14. Qd2 {[%clk 0:02:03]}  Bxe3 {[%clk 0:02:19]} 15. Qxe3 {[%clk 0:02:04]}  h6 {[%clk 0:02:11]} 16. Nd2 {[%clk 0:02:00]}  Qg5 {[%clk 0:02:08]} 17. f4 {[%clk 0:01:49]}  exf4 {[%clk 0:02:03]} 18. Rxf4 {[%clk 0:01:49]}  Qe5 {[%clk 0:01:56]} 19. Nf3 {[%clk 0:01:45]}  Qxc3 {[%clk 0:01:55]} 20. e5 {[%clk 0:01:34]}  Bf5 {[%clk 0:01:21]} 21. exd6+ {[%clk 0:01:25]}  Kf8 {[%clk 0:01:19]} 22. Rxf5 {[%clk 0:01:12]}  gxf5 {[%clk 0:01:18]} 23. d7 {[%clk 0:00:55]}  Nf6 {[%clk 0:01:08]} 24. Ne5 {[%clk 0:00:50]}  cxb4 {[%clk 0:00:41]} 25. axb4 {[%clk 0:00:51]}  Nd6 {[%clk 0:00:41]} 26. Rf1 {[%clk 0:00:40]}  Nfe4 {[%clk 0:00:34]} 27. Nc6 {[%clk 0:00:27]}  Kg7 {[%clk 0:00:29]} 28. Rf3 {[%clk 0:00:12]}  Rbg8 {[%clk 0:00:21]} 29. Rg3+ {[%clk 0:00:09]}  Kh7 {[%clk 0:00:17]} 30. Bxe4 {[%clk 0:00:04]}  Rxg3 {[%clk 0:00:13]} 31. Qxc3 {[%clk 0:00:02]}  Rxc3 {[%clk 0:00:13]} 0-1


[Site "https://www.chess.com"]